bitfinex/quotes_BTCUSD_20220212
["timestamp","ask_amount","ask_price","bid_price","bid_amount"]
[1644624001776,0.106276,42421.0,42418.0,0.11778766]
[1644624001978,0.156276,42421.0,42418.0,0.11778766]
[1644624002228,0.2652578,42421.0,42420.0,0.06581411]
[1644624002427,0.2062818,42421.0,42420.0,0.06581411]
[1644624002628,0.60279346,42421.0,42420.0,0.06581411]
[1644624002828,0.058984,42417.0,42406.0,0.06627168]
[1644624003127,0.0473,42416.0,42412.0,0.00023663]
[1644624003327,0.0471,42416.0,42406.0,0.00023663]
[1644624003526,0.0471,42416.0,42405.0,0.78400462]
[1644624003928,0.20040519,42409.0,42405.0,0.48400462]
[1644624004127,0.20040519,42409.0,42405.0,0.48221336]
[1644624004343,0.20040519,42409.0,42405.0,0.21641092]
[1644624004527,0.20040519,42409.0,42405.0,0.11256092]
[1644624004829,3.71577786,42395.0,42393.0,0.235894]
[1644624005026,3.59777786,42395.0,42393.0,0.235894]
[1644624005228,3.59777786,42395.0,42394.0,0.1416]
[1644624006269,2.92831169,42395.0,42394.0,0.200582]
[1644624006469,2.92831169,42395.0,42393.0,0.49818555]
[1644624006670,2.92831169,42395.0,42394.0,0.1416]
[1644624006972,2.92831169,42395.0,42393.0,0.46145243]
[1644624008171,2.92831169,42395.0,42394.0,0.058982]
[1644624009377,2.92831169,42395.0,42394.0,0.08424776]
[1644624014971,3.17155738,42395.0,42394.0,0.08424776]
[1644624015368,2.92831169,42395.0,42394.0,0.08424776]
[1644624015969,2.92831169,42395.0,42394.0,0.37669162]
[1644624016170,2.92831169,42395.0,42394.0,0.62669162]
[1644624016468,2.92831169,42395.0,42394.0,0.67399162]
[1644624016670,2.92831169,42395.0,42394.0,0.62399162]
[1644624017117,2.92831169,42395.0,42394.0,0.63342862]
[1644624017618,2.39273128,42395.0,42394.0,0.52399162]
[1644624018217,2.39273128,42395.0,42394.0,0.13154776]
[1644624023471,2.39273128,42395.0,42394.0,0.23154776]
[1644624023673,2.39273128,42395.0,42394.0,0.82344776]
[1644624023871,2.39273128,42395.0,42394.0,1.12234698]
[1644624024372,2.39273128,42395.0,42394.0,0.92344776]
[1644624024373,1.68514528,42395.0,42394.0,0.92344776]
[1644624024621,1.68514528,42395.0,42394.0,1.01303572]
[1644624025627,1.68514528,42395.0,42394.0,1.32862321]
[1644624026122,1.68514528,42395.0,42394.0,1.17540021]
[1644624026322,1.38e-06,42395.0,42394.0,1.23100502]
[1644624026629,0.00049146,42417.0,42407.0,0.294758]
[1644624026823,0.00049146,42417.0,42410.0,0.11791066]
[1644624027022,0.00049146,42417.0,42411.0,0.0473]
[1644624027423,0.00049146,42417.0,42415.0,0.058959]
[1644624027623,0.05,42418.0,42416.0,0.0473]
[1644624027825,0.05,42418.0,42414.0,0.14318276]
[1644624027826,0.24143718,42419.0,42417.0,0.0473]
[1644624028022,0.24143718,42419.0,42417.0,0.16521315]
[1644624028223,0.05,42418.0,42417.0,0.16521315]
[1644624028470,0.05,42418.0,42417.0,0.106257]
[1644624028870,0.24143718,42419.0,42417.0,0.106257]
[1644624029669,0.29143718,42419.0,42417.0,0.106257]
[1644624029870,0.29143718,42419.0,42417.0,0.165217]
[1644624030072,0.05896,42421.0,42417.0,0.165217]
[1644624030274,0.3508862,42425.0,42418.0,0.117905]
[1644624030275,0.00049137,42420.0,42418.0,0.117905]
[1644624030479,0.00049137,42420.0,42419.0,0.0473]
[1644624031374,0.2500979,42423.0,42419.0,0.106252]
[1644624031572,0.00049138,42422.0,42419.0,0.106252]
[1644624031971,0.00049138,42422.0,42419.0,0.165209]
[1644624032215,0.05,42420.0,42419.0,0.165209]
[1644624032617,0.05,42420.0,42419.0,0.19047476]
[1644624033023,0.25058927,42423.0,42419.0,0.19047476]
[1644624033621,0.2500979,42423.0,42419.0,0.19047476]
[1644624033820,0.25058927,42423.0,42419.0,0.19047476]
[1644624034123,0.05,42426.0,42423.0,0.24941073]
[1644624034321,0.25400555,42426.0,42424.0,0.30088991]
[1644624035971,0.5,42425.0,42424.0,0.35983991]
[1644624036474,0.05,42426.0,42424.0,0.50713991]
[1644624036872,0.05,42426.0,42424.0,0.56607891]
[1644624037272,0.05,42428.0,42424.0,0.78190879]
[1644624037472,0.05,42428.0,42425.0,0.11788]
[1644624037675,0.05,42428.0,42427.0,0.058937]
[1644624037871,0.05,42428.0,42427.0,0.11886988]
[1644624038077,0.05,42428.0,42427.0,0.13150276]
[1644624038474,0.4483285,42435.0,42427.0,0.13150276]
[1644624038674,0.05,42428.0,42427.0,0.13150276]
[1644624041938,0.05,42428.0,42427.0,0.24937538]
[1644624042136,0.05,42428.0,42427.0,0.30831138]
[1644624043137,0.65762937,42435.0,42427.0,0.30831138]
[1644624043382,0.0005294,42430.0,42427.0,0.30831138]
[1644624043576,0.05,42428.0,42427.0,0.28304562]
[1644624043772,0.0005294,42430.0,42427.0,0.28304562]
[1644624043973,0.0005294,42430.0,42429.0,0.058938]
[1644624044173,0.0005294,42430.0,42429.0,0.106238]
[1644624044374,0.05,42430.0,42429.0,0.106238]
[1644624045178,0.00052939,42432.0,42429.0,0.106238]
[1644624045376,0.05,42430.0,42429.0,0.16517605]
[1644624045775,0.05,42430.0,42429.0,0.17681405]
[1644624047820,0.00052939,42432.0,42429.0,0.17681405]
[1644624048019,0.05,42431.0,42430.0,0.11787]
[1644624048218,0.00052939,42432.0,42431.0,0.11786976]
[1644624048418,0.00052939,42432.0,42431.0,0.05893476]
[1644624048625,0.05052939,42432.0,42431.0,0.05893476]
[1644624048819,0.00052939,42432.0,42431.0,0.07156764]
[1644624049020,0.00052939,42432.0,42431.0,0.14313452]
[1644624049320,0.25930087,42435.0,42431.0,0.14313452]
[1644624049520,0.00052938,42434.0,42431.0,0.14313452]
[1644624049921,0.05,42432.0,42431.0,0.14313452]
[1644624050520,0.05,42434.0,42431.0,0.14313452]
[1644624050979,0.05052938,42434.0,42431.0,0.14313452]
[1644624051578,0.058938,42436.0,42433.0,0.058935]
[1644624051779,0.09449274,42437.0,42434.0,0.058934]
[1644624051978,0.05052938,42435.0,42434.0,0.058934]
[1644624052780,0.05,42435.0,42434.0,0.117869]
[1644624053279,0.05,42435.0,42434.0,0.102869]
[1644624054082,0.05,42435.0,42434.0,0.11550188]
[1644624054381,0.05,42435.0,42434.0,0.12813476]
[1644624058382,0.05,42435.0,42434.0,0.02526576]
[1644624058677,0.1473,42435.0,42425.0,0.14429585]
[1644624058890,0.05,42434.0,42425.0,0.14429585]
[1644624059077,0.05,42426.0,42425.0,0.14429585]
[1644624059579,0.1,42426.0,42425.0,0.14626239]
[1644624059877,0.12655517,42426.0,42425.0,0.14626239]
[1644624060676,0.44223538,42426.0,42425.0,0.14626239]
[1644624060877,0.68339535,42426.0,42425.0,0.14626239]
[1644624061078,0.65,42425.0,42424.0,5.23e-05]
[1644624061281,0.6973,42425.0,42422.0,0.05354474]
[1644624061482,0.1,42423.0,42422.0,0.05043474]
[1644624061982,0.1,42423.0,42422.0,0.07387295]
[1644624062435,0.65,42422.0,42420.0,0.0546359]
[1644624062736,0.4473,42421.0,42418.0,0.11123834]
[1644624062938,0.35959775,42419.0,42418.0,0.11123834]
[1644624063133,0.45689775,42419.0,42418.0,0.11123834]
[1644624063337,0.50689775,42419.0,42418.0,0.11123834]
[1644624063735,0.84055676,42419.0,42418.0,0.11123834]
[1644624064139,0.95851984,42419.0,42418.0,0.11123834]
[1644624064938,0.79055676,42419.0,42418.0,0.11123834]
[1644624065139,0.42917651,42419.0,42418.0,0.11123834]
[1644624065738,0.35689775,42419.0,42418.0,0.11123834]
[1644624066781,0.44293056,42419.0,42418.0,0.11123834]
[1644624068380,0.49293056,42419.0,42418.0,0.11123834]
[1644624068581,0.54293056,42419.0,42418.0,0.11123834]
[1644624068982,0.54293056,42419.0,42418.0,0.1054454]
[1644624069620,0.66088658,42419.0,42418.0,0.1054454]
[1644624070019,0.71088658,42419.0,42418.0,0.09965246]
[1644624070420,0.66088658,42419.0,42418.0,0.09965246]
[1644624070620,0.13603281,42419.0,42418.0,0.09965246]
[1644624070820,0.05,42419.0,42418.0,0.09965246]
[1644624071022,0.05,42420.0,42418.0,0.09965246]
[1644624071922,0.05,42420.0,42418.0,0.09768592]
[1644624072120,0.058981,42421.0,42418.0,0.09768592]
[1644624072425,0.058957,42424.0,42419.0,0.330324]
[1644624072619,0.058957,42424.0,42418.0,0.09768592]
[1644624073019,0.29676642,42422.0,42419.0,0.330324]
[1644624073219,0.05,42422.0,42419.0,0.330324]
[1644624073472,0.05,42422.0,42418.0,0.09571938]
[1644624074071,0.05,42422.0,42419.0,0.330324]
[1644624074474,0.05,42422.0,42420.0,0.330324]
[1644624074871,0.05,42422.0,42418.0,0.09571938]
[1644624075073,0.117931,42423.0,42418.0,0.09571938]
[1644624075274,0.05,42419.0,42418.0,0.09571938]
[1644624075474,0.117931,42423.0,42420.0,0.1]
[1644624076473,0.117931,42423.0,42421.0,0.330324]
[1644624077119,0.117931,42423.0,42420.0,0.1]
[1644624077120,0.11730297,42423.0,42420.0,0.1]
[1644624077620,0.058959,42423.0,42421.0,0.330324]
[1644624077821,0.3952,42436.0,42423.0,0.330324]
[1644624078020,0.3952,42436.0,42424.0,0.0473]
[1644624078021,0.18797567,42434.0,42424.0,0.0473]
[1644624078618,0.08944171,42432.0,42424.0,0.0473]
[1644624078819,0.058953,42427.0,42424.0,0.0473]
[1644624079420,0.058953,42427.0,42425.0,0.330324]
[1644624079618,0.1161,42436.0,42426.0,0.330324]
[1644624079826,0.1161,42436.0,42427.0,0.28901493]
[1644624080020,0.09449274,42437.0,42427.0,0.34795836]
[1644624080218,0.09449274,42437.0,42428.0,0.330324]
[1644624080420,0.09449274,42437.0,42429.0,0.330324]
[1644624080621,0.09449274,42437.0,42431.0,0.330324]
[1644624080880,0.15343274,42437.0,42427.0,0.34795836]
[1644624081072,0.15343274,42437.0,42429.0,0.05894]
[1644624081275,0.15343274,42437.0,42431.0,0.330324]
[1644624081672,0.15343274,42437.0,42429.0,0.00196654]
[1644624081873,0.15343274,42437.0,42430.0,0.330324]
[1644624082075,0.15343274,42437.0,42429.0,0.00196654]
[1644624082673,0.15343274,42437.0,42429.0,0.00775946]
[1644624083473,0.15343274,42437.0,42430.0,0.330324]
[1644624083873,0.15343274,42437.0,42429.0,0.01355238]
[1644624084074,0.36692788,42437.0,42429.0,0.01355238]
[1644624084823,0.36692788,42437.0,42430.0,0.00196654]
[1644624085126,0.21238389,42437.0,42430.0,0.00196654]
[1644624085324,0.058949,42436.0,42430.0,0.00196654]
[1644624086524,0.058949,42436.0,42431.0,0.330324]
[1644624086724,0.058949,42436.0,42430.0,0.00196654]
[1644624086925,0.00052597,42435.0,42430.0,0.00775946]
[1644624087132,0.05947697,42435.0,42430.0,0.00775946]
[1644624087326,0.05947697,42435.0,42431.0,0.330324]
[1644624087627,0.05947697,42435.0,42430.0,0.00775946]
[1644624087826,0.058951,42435.0,42431.0,0.330324]
[1644624088025,0.058951,42435.0,42432.0,0.330324]
[1644624088227,0.05947697,42435.0,42432.0,0.330324]
[1644624088884,0.27794771,42435.0,42433.0,0.330324]
[1644624089086,0.058951,42435.0,42433.0,0.330324]
[1644624089684,0.058951,42435.0,42430.0,0.01551892]
[1644624089884,0.058951,42435.0,42432.0,0.00579292]
[1644624090188,0.058951,42435.0,42433.0,0.330324]
[1644624090988,0.00052597,42436.0,42434.0,0.28102358]
[1644624091287,0.00052597,42436.0,42435.0,0.330324]
[1644624091486,0.063939,42437.0,42435.0,0.315324]
[1644624091888,0.06426806,42437.0,42435.0,0.315324]
[1644624092723,0.063939,42437.0,42435.0,0.315324]
[1644624093124,0.001,42446.0,42438.0,0.65]
[1644624093328,0.001,42446.0,42439.0,0.630324]
[1644624093525,0.001,42446.0,42440.0,0.10622552]
[1644624093725,0.001,42446.0,42442.0,0.328889]
[1644624093923,0.001,42446.0,42443.0,0.0473]
[1644624094225,0.001,42446.0,42444.0,0.376189]
[1644624094525,0.001,42449.0,42445.0,0.3473]
[1644624094726,0.023372,42449.0,42445.0,0.0473]
[1644624095125,0.001,42451.0,42445.0,0.106225]
[1644624095328,0.00052635,42449.0,42447.0,0.41579095]
[1644624095623,0.00052635,42449.0,42446.0,0.058923]
[1644624095877,0.00052635,42449.0,42445.0,0.0473]
[1644624096171,0.00052635,42449.0,42445.0,0.04926654]
[1644624096370,0.058926,42450.0,42445.0,0.04926654]
[1644624096571,0.023372,42448.0,42445.0,0.04926654]
[1644624096771,0.24524662,42448.0,42445.0,0.04926654]
[1644624096975,0.30417962,42448.0,42445.0,0.04926654]
[1644624097172,0.30417962,42448.0,42446.0,0.328889]
[1644624097173,0.058933,42448.0,42446.0,0.328889]
[1644624097373,0.058933,42448.0,42445.0,0.05505946]
[1644624097374,0.058933,42448.0,42447.0,0.328889]
[1644624097977,0.058933,42448.0,42445.0,0.05505946]
[1644624098173,0.22817073,42446.0,42445.0,0.06085238]
[1644624098374,0.22817073,42446.0,42445.0,0.01355238]
[1644624100231,0.32817073,42446.0,42445.0,0.01355238]
[1644624100631,0.20479873,42446.0,42445.0,0.01355238]
[1644624100827,0.20479873,42446.0,42445.0,0.009726]
[1644624100828,0.22817073,42446.0,42445.0,0.009726]
[1644624101032,0.32817073,42446.0,42445.0,0.009726]
[1644624101830,0.32817073,42446.0,42445.0,0.01551892]
[1644624102230,0.42817073,42446.0,42445.0,0.01551892]
[1644624102630,0.32817073,42446.0,42445.0,0.01551892]
[1644624102831,0.32817073,42446.0,42445.0,0.01748546]
[1644624103234,0.3536561,42447.0,42445.0,0.01748546]
[1644624103476,0.023372,42446.0,42445.0,0.01748546]
[1644624103876,0.023372,42446.0,42445.0,0.02327838]
[1644624104774,0.223372,42446.0,42445.0,0.02524492]
[1644624104978,0.073372,42446.0,42445.0,0.02524492]
[1644624105273,0.023372,42446.0,42445.0,0.02524492]
[1644624105675,0.2344988,42446.0,42445.0,0.02524492]
[1644624105877,0.2111268,42446.0,42445.0,0.02721146]
[1644624106176,0.2344988,42446.0,42445.0,0.02721146]
[1644624106377,0.2111268,42446.0,42445.0,0.02721146]
[1644624106774,0.2344988,42446.0,42445.0,0.02721146]
[1644624106973,0.023372,42446.0,42445.0,0.03300438]
[1644624107826,0.117872,42447.0,42445.0,0.03300438]
[1644624108024,0.117872,42447.0,42445.0,0.03497092]
[1644624109026,0.023372,42446.0,42445.0,0.03693746]
[1644624109332,0.65,42445.0,42444.0,0.00129542]
[1644624109530,0.673372,42445.0,42444.0,0.00129542]
[1644624109731,0.820672,42445.0,42444.0,0.00129542]
[1644624110130,0.023372,42441.0,42438.0,0.05072294]
[1644624110328,0.0473,42440.0,42438.0,0.05072294]
[1644624110626,0.023372,42439.0,42438.0,0.05072294]
[1644624115233,0.023372,42439.0,42438.0,0.05651586]
[1644624116239,0.023372,42439.0,42438.0,0.06230878]
[1644624116439,0.058951,42441.0,42438.0,0.06332258]
[1644624116638,0.023372,42439.0,42438.0,0.06332258]
[1644624116837,0.058951,42441.0,42438.0,0.06332258]
[1644624117238,0.058951,42441.0,42438.0,0.06528912]
[1644624117439,0.058951,42441.0,42438.0,0.06630292]
[1644624117440,0.023372,42440.0,42438.0,0.06630292]
[1644624117839,0.058951,42441.0,42438.0,0.06630292]
[1644624118040,0.023372,42440.0,42438.0,0.06630292]
[1644624118241,0.058951,42441.0,42438.0,0.06630292]
[1644624118480,0.058951,42441.0,42438.0,0.07310964]
[1644624119082,0.013372,42440.0,42438.0,0.07300964]
[1644624119282,0.058951,42441.0,42438.0,0.07880256]
[1644624119482,0.058951,42441.0,42438.0,0.07890256]
[1644624120083,0.013369,42439.0,42438.0,0.07890256]
[1644624120284,0.058951,42441.0,42438.0,0.07890256]
[1644624120490,0.124,42451.0,42439.0,0.328911]
[1644624120491,0.005,42444.0,42439.0,0.328911]
[1644624121284,0.005,42444.0,42438.0,0.36862127]
[1644624121489,0.005,42444.0,42440.0,0.328911]
[1644624121490,0.063932,42444.0,42440.0,0.328911]
[1644624121783,0.063932,42444.0,42438.0,0.37160161]
[1644624121784,0.063932,42444.0,42439.0,0.00052764]
[1644624122221,0.063932,42444.0,42440.0,0.328911]
[1644624122622,0.063932,42444.0,42441.0,0.328911]
[1644624122923,0.063932,42444.0,42440.0,0.00052764]
[1644624123524,0.063932,42444.0,42440.0,0.00154144]
[1644624123721,0.063932,42444.0,42441.0,0.328911]
[1644624123923,0.063932,42444.0,42440.0,0.00154144]
[1644624123924,0.05813908,42444.0,42440.0,0.00154144]
[1644624124130,0.05813908,42444.0,42441.0,0.328911]
[1644624124324,0.05813908,42444.0,42440.0,0.02664863]
[1644624124525,0.05813908,42444.0,42440.0,0.02766243]
[1644624125126,0.05813908,42444.0,42441.0,0.328911]
[1644624125325,0.05813908,42444.0,42442.0,0.328911]
[1644624125526,0.05813908,42444.0,42441.0,0.328911]
[1644624125879,0.05813908,42444.0,42440.0,0.05376398]
[1644624126274,0.05813908,42444.0,42441.0,0.35401819]
[1644624126474,0.05813908,42444.0,42441.0,0.02510719]
[1644624126680,0.05813908,42444.0,42442.0,0.3299248]
[1644624126874,0.05813908,42444.0,42442.0,0.0010138]
[1644624128377,0.05813908,42444.0,42442.0,0.02612099]
[1644624128777,0.05813908,42444.0,42442.0,0.02713479]
[1644624129378,0.11708308,42444.0,42442.0,0.05224198]
[1644624129631,0.11708308,42444.0,42442.0,0.05325578]
[1644624130431,0.11708308,42444.0,42442.0,0.07836297]
[1644624130931,0.11708308,42444.0,42442.0,0.07937677]
[1644624131333,0.11708308,42444.0,42442.0,0.10448396]
[1644624131533,0.013369,42443.0,42442.0,0.10448396]
[1644624131735,0.05813908,42444.0,42442.0,0.10448396]
[1644624132033,0.05813908,42444.0,42442.0,0.10549776]
[1644624132233,0.013369,42443.0,42442.0,0.10549776]
[1644624132434,0.013369,42443.0,42442.0,0.13060495]
[1644624132833,0.036469,42443.0,42442.0,0.13060495]
[1644624133034,0.036469,42443.0,42442.0,0.13161875]
[1644624133236,0.0231,42443.0,42442.0,0.13161875]
[1644624133495,0.0231,42443.0,42442.0,0.15672594]
[1644624133698,0.036469,42443.0,42442.0,0.15672594]
[1644624134399,0.036469,42443.0,42442.0,0.18183313]
[1644624134998,0.10833389,42443.0,42442.0,0.18284693]
[1644624135497,0.10833389,42443.0,42442.0,0.20795412]
[1644624136099,0.10833389,42443.0,42442.0,0.20896792]
[1644624136498,0.10833389,42443.0,42442.0,0.23407511]
[1644624137125,0.10833389,42443.0,42442.0,0.23508891]
[1644624137528,0.10833389,42443.0,42442.0,0.2601961]
[1644624138528,0.0231,42443.0,42442.0,0.28530329]
[1644624138729,0.036469,42443.0,42442.0,0.28530329]
[1644624139129,0.036469,42443.0,42442.0,0.28631709]
[1644624140130,0.036469,42443.0,42442.0,0.28723088]
[1644624140530,0.036469,42443.0,42442.0,0.33592621]
[1644624141177,0.036469,42443.0,42442.0,0.33694001]
[1644624141381,0.031469,42443.0,42442.0,0.38563534]
[1644624142581,0.031469,42443.0,42442.0,0.43433067]
[1644624143180,0.031469,42443.0,42442.0,0.43534447]
[1644624143479,0.031469,42443.0,42442.0,0.4840398]
[1644624144281,0.031469,42443.0,42442.0,0.4850536]
[1644624144484,0.031469,42443.0,42442.0,0.53374893]
[1644624144937,0.02950246,42443.0,42442.0,0.53374893]
[1644624145337,0.02950246,42443.0,42442.0,0.53476273]
[1644624145539,0.02950246,42443.0,42442.0,0.60755145]
[1644624146440,0.02848866,42443.0,42442.0,0.60755145]
[1644624146740,0.02848866,42443.0,42442.0,0.68135397]
[1644624147143,0.07578866,42443.0,42442.0,0.68135397]
[1644624147541,0.07578866,42443.0,42442.0,0.75515649]
[1644624148041,0.47711481,42443.0,42442.0,0.40138749]
[1644624148480,0.17578866,42443.0,42442.0,0.40138749]
[1644624148777,0.57708734,42443.0,42442.0,0.47519001]
[1644624149476,0.57708734,42443.0,42442.0,0.45519001]
[1644624149775,0.57708734,42443.0,42442.0,0.50388534]
[1644624150579,0.17578866,42443.0,42442.0,0.50388534]
[1644624150782,0.07578866,42443.0,42442.0,0.55258067]
[1644624151683,0.07578866,42443.0,42442.0,0.601276]
[1644624152335,0.57578866,42443.0,42442.0,0.601276]
[1644624152737,0.77578866,42443.0,42442.0,0.64997133]
[1644624153536,0.77578866,42443.0,42442.0,0.62486414]
[1644624153738,0.77578866,42443.0,42442.0,0.63911879]
[1644624153939,0.058961,42438.0,42430.0,0.3]
[1644624154239,0.1768821,42439.0,42428.0,0.00943]
[1644624154240,0.058966,42435.0,42428.0,0.00943]
[1644624154439,0.27878619,42434.0,42428.0,0.00943]
[1644624154638,0.303679,42434.0,42420.0,0.09943]
[1644624154841,0.08252983,42425.0,42420.0,0.14812533]
[1644624155043,0.18879855,42425.0,42420.0,0.14812533]
[1644624155241,0.24776955,42425.0,42420.0,0.14812533]
[1644624155885,0.11794,42424.0,42420.0,0.14812533]
[1644624156077,0.11794,42424.0,42420.0,0.14712533]
[1644624156078,0.05897123,42423.0,42420.0,0.14712533]
[1644624156279,0.28534732,42422.0,42420.0,0.14712533]
[1644624156678,0.34432132,42422.0,42420.0,0.14712533]
[1644624157077,0.40329332,42422.0,42420.0,0.14712533]
[1644624157779,0.117946,42422.0,42420.0,0.14712533]
[1644624158582,0.117946,42422.0,42404.0,0.09814645]
[1644624158583,0.35,42419.0,42404.0,0.09814645]
[1644624158785,0.05,42417.0,42402.0,0.3199]
[1644624158986,0.0473,42416.0,42401.0,0.3859]
[1644624159382,0.0473,42416.0,42401.0,0.2359]
[1644624159632,0.26092265,42404.0,42401.0,0.2359]
[1644624159830,0.25271224,42408.0,42407.0,0.08270841]
[1644624160030,0.30271224,42408.0,42407.0,0.08270841]
[1644624160233,0.35271224,42408.0,42407.0,0.08270841]
[1644624160830,0.43394031,42408.0,42407.0,0.08270841]
[1644624161134,0.43394031,42408.0,42400.0,0.0011]
[1644624161135,0.65,42407.0,42400.0,0.0011]
[1644624161335,0.05900966,42397.0,42395.0,6e-05]
[1644624161634,0.65,42395.0,42383.0,0.0011]
[1644624161831,0.65,42395.0,42385.0,0.328968]
[1644624162036,0.059015,42395.0,42394.0,0.33860036]
[1644624162234,0.059015,42395.0,42394.0,0.32916236]
[1644624162433,0.0473,42396.0,42394.0,0.32916236]
[1644624162839,0.01511966,42395.0,42394.0,0.32916236]
[1644624163034,0.01511966,42395.0,42394.0,0.328968]
[1644624163236,0.01511966,42395.0,42394.0,0.53890929]
[1644624163481,0.5919,42409.0,42394.0,0.53890929]
[1644624163482,0.0473,42402.0,42394.0,0.53890929]
[1644624163681,0.0473,42402.0,42394.0,0.58890929]
[1644624164080,0.0473,42402.0,42394.0,0.25994129]
[1644624164281,0.0473,42402.0,42400.0,0.19580114]
[1644624164480,0.0473,42402.0,42401.0,0.328968]
[1644624164680,0.0473,42402.0,42396.0,0.00050219]
[1644624164882,0.05899,42405.0,42397.0,0.328968]
[1644624165082,0.05899,42405.0,42396.0,0.00050219]
[1644624165283,0.05899,42405.0,42399.0,0.009435]
[1644624165684,0.24794552,42400.0,42398.0,0.00050218]
[1644624166294,1.17124902,42399.0,42386.0,0.3936]
[1644624166486,1.17124902,42399.0,42378.0,0.3928]
[1644624166487,1.22124902,42399.0,42379.0,0.1232]
[1644624166685,0.0473,42398.0,42379.0,0.0011]
[1644624166885,0.05,42396.0,42379.0,0.0011]
[1644624167131,0.059028,42392.0,42379.0,0.0011]
[1644624167334,0.2509601,42382.0,42379.0,0.08042184]
[1644624167533,0.0473,42388.0,42379.0,0.08042184]
[1644624167734,0.0473,42394.0,42382.0,0.328968]
[1644624167933,0.4329,42395.0,42382.0,0.328968]
[1644624168139,0.3,42394.0,42379.0,0.0011]
[1644624168337,0.65,42388.0,42376.0,0.0011]
[1644624168537,0.3473,42387.0,42376.0,0.0011]
[1644624168735,0.05,42385.0,42376.0,0.0011]
[1644624168933,0.3473,42384.0,42376.0,0.0011]
[1644624169234,0.07701452,42380.0,42376.0,0.0011]
[1644624169439,0.19778529,42379.0,42376.0,0.0011]
[1644624169735,0.156336,42380.0,42376.0,0.0011]
[1644624170035,0.059035,42380.0,42378.0,0.328968]
[1644624170235,0.329361,42379.0,42371.0,0.01]
[1644624170440,0.329361,42379.0,42376.0,0.00051941]
[1644624170441,0.679361,42379.0,42376.0,0.00051941]
[1644624170637,0.376661,42378.0,42376.0,0.00051941]
[1644624170893,0.4356994,42378.0,42376.0,0.00051941]
[1644624171085,0.329361,42377.0,42376.0,0.00051941]
[1644624171284,0.329361,42377.0,42376.0,9.41e-06]
[1644624171285,0.576661,42377.0,42376.0,9.41e-06]
[1644624171486,0.329361,42375.0,42371.0,0.01]
[1644624171685,0.118083,42376.0,42371.0,0.01]
[1644624171984,0.109037,42374.0,42371.0,0.01]
[1644624172185,0.2670193,42374.0,42371.0,0.01]
[1644624172384,0.05,42373.0,42371.0,0.01]
[1644624172586,0.059037,42374.0,42372.0,0.329361]
[1644624172784,0.059037,42374.0,42371.0,0.01]
[1644624173784,0.118088,42373.0,42371.0,0.01]
[1644624174187,0.25010242,42372.0,42371.0,0.01]
[1644624174387,0.118088,42373.0,42371.0,0.339361]
[1644624174628,0.218088,42373.0,42371.0,0.01]
[1644624174829,0.318088,42373.0,42371.0,0.005]
[1644624175031,0.259044,42373.0,42371.0,0.005]
[1644624175233,0.22815761,42372.0,42371.0,0.005]
[1644624175935,0.22815761,42372.0,42363.0,0.0020695]
[1644624175936,0.14573485,42370.0,42363.0,0.0020695]
[1644624176135,0.376661,42369.0,42364.0,0.00023325]
[1644624176335,0.376661,42369.0,42362.0,0.00023325]
[1644624176336,0.329361,42368.0,42362.0,0.00023325]
[1644624176533,0.329361,42368.0,42352.0,0.00023325]
[1644624176534,0.0473,42367.0,42352.0,0.00023325]
[1644624176735,0.53172306,42362.0,42352.0,0.00023325]
[1644624176935,0.86108406,42362.0,42352.0,0.00023325]
[1644624177135,1.09054689,42362.0,42352.0,0.00023325]
[1644624177735,0.65,42361.0,42352.0,0.00023325]
[1644624177936,0.329361,42360.0,42351.0,0.01023325]
[1644624178142,0.429361,42360.0,42351.0,0.01023325]
[1644624178397,0.329361,42358.0,42351.0,0.01023325]
[1644624178588,0.26480809,42355.0,42351.0,0.01023325]
[1644624178789,0.13698837,42354.0,42351.0,0.01023325]
[1644624179088,0.447502,42356.0,42355.0,0.52910711]
[1644624179288,0.497502,42356.0,42355.0,0.52910711]
[1644624179489,0.447502,42356.0,42355.0,0.52910711]
[1644624181190,0.447502,42356.0,42355.0,0.51552268]
[1644624181593,0.1181384,42357.0,42355.0,0.84488368]
[1644624181594,0.059068,42357.0,42355.0,0.84488368]
[1644624181793,0.05905602,42362.0,42356.0,0.379361]
[1644624181794,0.059051,42362.0,42356.0,0.379361]
[1644624182136,0.5919,42382.0,42356.0,0.379361]
[1644624182137,0.329361,42360.0,42356.0,0.00023325]
[1644624182336,0.329361,42360.0,42355.0,0.51552268]
[1644624182739,0.329361,42356.0,42355.0,0.51552268]
[1644624183540,0.57278856,42356.0,42355.0,0.51552268]
[1644624183739,0.62278856,42356.0,42355.0,0.51552268]
[1644624184741,0.82008856,42356.0,42355.0,0.32651363]
[1644624186781,1.21568024,42355.0,42354.0,0.00023325]
[1644624186983,0.059083,42352.0,42336.0,0.28892867]
[1644624187180,0.4,42353.0,42336.0,0.3]
[1644624187181,0.11817161,42350.0,42336.0,0.3]
[1644624187384,0.329361,42349.0,42346.0,0.00205111]
[1644624187583,0.12874699,42348.0,42331.0,0.01]
[1644624187785,0.59401669,42342.0,42331.0,0.01]
[1644624188182,0.85310669,42342.0,42331.0,0.01]
[1644624188381,0.91219527,42342.0,42331.0,0.01]
[1644624189643,0.91219527,42342.0,42339.0,0.00018441]
[1644624189843,0.78881613,42342.0,42339.0,0.00018441]
[1644624190046,0.73881613,42342.0,42339.0,0.00018441]
[1644624190645,0.73881613,42342.0,42331.0,0.01]
[1644624190845,0.73881613,42342.0,42339.0,0.00018441]
[1644624191145,0.89790471,42342.0,42339.0,0.00018441]
[1644624191351,0.53491261,42342.0,42339.0,0.00018441]
[1644624191747,0.48221261,42342.0,42339.0,0.00018441]
[1644624191944,0.48221261,42342.0,42334.0,0.0011]
[1644624192144,0.48221261,42342.0,42339.0,0.00051276]
[1644624192946,0.58221261,42342.0,42339.0,0.00051276]
[1644624193146,0.68221261,42342.0,42334.0,0.0011]
[1644624193388,0.68221261,42342.0,42339.0,0.00051276]
[1644624193584,0.63875707,42342.0,42339.0,0.00051276]
[1644624194283,0.25285161,42342.0,42334.0,0.0011]
[1644624194482,0.25285161,42342.0,42339.0,0.00049296]
[1644624194683,0.58221261,42342.0,42339.0,0.00049296]
[1644624194881,0.68221261,42342.0,42339.0,0.00049296]
[1644624195484,0.68221261,42342.0,42334.0,0.0011]
[1644624198233,0.68221261,42342.0,42339.0,0.00051235]